[Event "*** Titled Tuesday 3|2 Blitz (Late)"]
[Site "Chess.com"]
[Date "2016.12.06"]
[Round "5"]
[White "Kawhi_Leonard2"]
[Black "Quiet_Desperation"]
[Result "1-0"]
[WhiteElo "2236"]
[BlackElo "2293"]
[TimeControl "180+2"]
[EndTime "17:53:36 PST"]
[Termination "Kawhi_Leonard2 won by resignation"]

1. e4 {[%clk 0:03:02]} 1... Nc6 {[%clk 0:02:59.6]} 2. Nf3 {[%clk 0:03:02.5]}
2... d6 {[%clk 0:02:59.1]} 3. d4 {[%clk 0:03:03.4]} 3... Nf6 {[%clk 0:03:00.3]}
4. Nc3 {[%clk 0:03:04.3]} 4... d5 {[%clk 0:03:01.5]} 5. exd5 {[%clk 0:02:55]}
5... Nxd5 {[%clk 0:03:02.5]} 6. Bc4 {[%clk 0:02:49.8]} 6... Nb6 {[%clk
0:02:59.3]} 7. Bb5 {[%clk 0:02:47]} 7... a6 {[%clk 0:02:54.5]} 8. Bxc6+ {[%clk
0:02:47.2]} 8... bxc6 {[%clk 0:02:55.7]} 9. Ne5 {[%clk 0:02:47.4]} 9... e6
{[%clk 0:02:37.3]} 10. Qf3 {[%clk 0:02:43.5]} 10... Qf6 {[%clk 0:01:47.6]} 11.
Qxc6+ {[%clk 0:02:40.9]} 11... Kd8 {[%clk 0:01:48.9]} 12. Bg5 {[%clk 0:02:39.7]}
1-0

[Event "*** Titled Tuesday 3|2 Blitz (Late)"]
[Site "Chess.com"]
[Date "2016.12.06"]
[Round "5"]
[White "Rumpel-VK"]
[Black "MattyDPerrine"]
[Result "1-0"]
[WhiteElo "2461"]
[BlackElo "2224"]
[TimeControl "180+2"]
[EndTime "17:54:37 PST"]
[Termination "Rumpel-VK won by resignation"]

1. e4 {[%clk 0:02:59.3]} 1... c5 {[%clk 0:02:46.3]} 2. g3 {[%clk 0:02:58.4]}
2... Nc6 {[%clk 0:02:46.4]} 3. Bg2 {[%clk 0:02:58.6]} 3... g6 {[%clk 0:02:48]}
4. f4 {[%clk 0:02:55.7]} 4... Bg7 {[%clk 0:02:49.3]} 5. Nf3 {[%clk 0:02:53.4]}
5... d6 {[%clk 0:02:45.4]} 6. O-O {[%clk 0:02:52.6]} 6... Rb8 {[%clk 0:02:34.1]}
7. d3 {[%clk 0:02:51.1]} 7... e6 {[%clk 0:02:34.6]} 8. c3 {[%clk 0:02:49.3]}
8... Nge7 {[%clk 0:02:35.2]} 9. Na3 {[%clk 0:02:47.5]} 9... O-O {[%clk
0:02:32.7]} 10. Nc2 {[%clk 0:02:47.8]} 10... b5 {[%clk 0:02:33.7]} 11. a3 {[%clk
0:02:44.2]} 11... a5 {[%clk 0:02:33.7]} 12. Be3 {[%clk 0:02:40.6]} 12... b4
{[%clk 0:02:34.5]} 13. axb4 {[%clk 0:02:41.5]} 13... axb4 {[%clk 0:02:33.9]} 14.
d4 {[%clk 0:02:37.9]} 14... bxc3 {[%clk 0:02:27.8]} 15. bxc3 {[%clk 0:02:38.3]}
15... cxd4 {[%clk 0:02:28.9]} 16. cxd4 {[%clk 0:02:33.7]} 16... d5 {[%clk
0:02:24.5]} 17. e5 {[%clk 0:02:28.5]} 17... Nf5 {[%clk 0:01:54.3]} 18. g4 {[%clk
0:02:20.7]} 18... Nxe3 {[%clk 0:01:44.9]} 19. Nxe3 {[%clk 0:02:21]} 19... Rb3
{[%clk 0:01:45.7]} 20. Qxb3 {[%clk 0:02:20.1]} 1-0

[Event "*** Titled Tuesday 3|2 Blitz (Late)"]
[Site "Chess.com"]
[Date "2016.12.06"]
[Round "5"]
[White "Buffy7"]
[Black "nonscitis"]
[Result "1-0"]
[WhiteElo "2468"]
[BlackElo "2363"]
[TimeControl "180+2"]
[EndTime "17:56:46 PST"]
[Termination "Buffy7 won by checkmate"]

1. Nf3 {[%clk 0:03:02]} 1... Nf6 {[%clk 0:03:00.1]} 2. c4 {[%clk 0:03:03.9]}
2... e6 {[%clk 0:03:00.5]} 3. Nc3 {[%clk 0:03:04.8]} 3... d5 {[%clk 0:02:57.3]}
4. d4 {[%clk 0:03:04.7]} 4... c6 {[%clk 0:02:55]} 5. Bg5 {[%clk 0:03:04.7]} 5...
Be7 {[%clk 0:02:55.4]} 6. e3 {[%clk 0:03:02.5]} 6... O-O {[%clk 0:02:55.4]} 7.
Bd3 {[%clk 0:03:03.4]} 7... Nbd7 {[%clk 0:02:56.3]} 8. Rc1 {[%clk 0:02:57.9]}
8... dxc4 {[%clk 0:02:45.3]} 9. Bxc4 {[%clk 0:02:58.6]} 9... b5 {[%clk
0:02:46.9]} 10. Bd3 {[%clk 0:02:57.8]} 10... Bb7 {[%clk 0:02:47.7]} 11. O-O
{[%clk 0:02:55.7]} 11... a6 {[%clk 0:02:45.7]} 12. Bxf6 {[%clk 0:02:38.9]} 12...
Nxf6 {[%clk 0:02:44.2]} 13. Ne4 {[%clk 0:02:39.7]} 13... Nxe4 {[%clk 0:02:37.7]}
14. Bxe4 {[%clk 0:02:41.6]} 14... Rc8 {[%clk 0:02:22.9]} 15. Ne5 {[%clk
0:02:39.7]} 15... Bd6 {[%clk 0:02:22.3]} 16. f4 {[%clk 0:02:18]} 16... Bxe5
{[%clk 0:01:50.2]} 17. fxe5 {[%clk 0:02:12.7]} 17... f5 {[%clk 0:01:43.6]} 18.
exf6 {[%clk 0:02:02.9]} 18... Rxf6 {[%clk 0:01:43.8]} 19. Qh5 {[%clk 0:02:01.8]}
19... g6 {[%clk 0:01:41.4]} 20. Qe5 {[%clk 0:02:01.2]} 20... Rxf1+ {[%clk
0:01:34.4]} 21. Rxf1 {[%clk 0:02:03.1]} 21... Qe7 {[%clk 0:01:34.8]} 22. Rf6
{[%clk 0:02:02.2]} 22... Re8 {[%clk 0:00:29]} 23. Bxg6 {[%clk 0:02:02.8]} 23...
hxg6 {[%clk 0:00:11.2]} 24. Rxg6+ {[%clk 0:02:04.7]} 24... Kf7 {[%clk 0:00:12]}
25. Qg7# {[%clk 0:02:05.2]} 1-0

[Event "*** Titled Tuesday 3|2 Blitz (Late)"]
[Site "Chess.com"]
[Date "2016.12.06"]
[Round "5"]
[White "platy3"]
[Black "Scott-fox21"]
[Result "1-0"]
[WhiteElo "2699"]
[BlackElo "2179"]
[TimeControl "180+2"]
[EndTime "17:56:56 PST"]
[Termination "platy3 won by resignation"]

1. e4 {[%clk 0:02:22]} 1... c5 {[%clk 0:02:59.9]} 2. Nf3 {[%clk 0:02:22.3]} 2...
d6 {[%clk 0:03:00.9]} 3. d4 {[%clk 0:02:22.9]} 3... cxd4 {[%clk 0:03:02.8]} 4.
Nxd4 {[%clk 0:02:24.2]} 4... Nf6 {[%clk 0:03:04.4]} 5. Nc3 {[%clk 0:02:25.5]}
5... Nc6 {[%clk 0:03:06]} 6. Bc4 {[%clk 0:02:26]} 6... Qb6 {[%clk 0:03:01.3]} 7.
Nb3 {[%clk 0:02:26.5]} 7... e6 {[%clk 0:02:58.2]} 8. Bf4 {[%clk 0:02:24.3]} 8...
e5 {[%clk 0:02:13.8]} 9. Be3 {[%clk 0:02:21.7]} 9... Qd8 {[%clk 0:01:57.7]} 10.
O-O {[%clk 0:02:18.5]} 10... Be6 {[%clk 0:01:56.9]} 11. Bxe6 {[%clk 0:02:18.2]}
11... fxe6 {[%clk 0:01:57.9]} 12. f4 {[%clk 0:02:18.8]} 12... exf4 {[%clk
0:01:56.9]} 13. Bxf4 {[%clk 0:02:16.2]} 13... Be7 {[%clk 0:01:49.5]} 14. Qe2
{[%clk 0:02:12.7]} 14... O-O {[%clk 0:01:45.6]} 15. Rad1 {[%clk 0:02:11.9]}
15... Qb6+ {[%clk 0:01:43.5]} 16. Kh1 {[%clk 0:02:12.4]} 16... Rad8 {[%clk
0:01:38.9]} 17. Be3 {[%clk 0:02:05.6]} 17... Qc7 {[%clk 0:01:26.2]} 18. Qc4
{[%clk 0:02:06.5]} 18... Qd7 {[%clk 0:01:23]} 19. Nc5 {[%clk 0:02:06.3]} 19...
dxc5 {[%clk 0:00:53.4]} 20. Rxd7 {[%clk 0:02:05.2]} 20... Nxd7 {[%clk
0:00:54.4]} 21. Qxe6+ {[%clk 0:02:03.1]} 21... Kh8 {[%clk 0:00:55.8]} 22. Rxf8+
{[%clk 0:02:02.8]} 22... Rxf8 {[%clk 0:00:56.6]} 23. Qxd7 {[%clk 0:01:54.7]}
23... Rf1+ {[%clk 0:00:52.8]} 24. Bg1 {[%clk 0:01:54.9]} 24... c4 {[%clk
0:00:50.3]} 25. Qc8+ {[%clk 0:01:41.7]} 25... Nd8 {[%clk 0:00:43.1]} 26. Nd5
{[%clk 0:01:39.3]} 1-0

[Event "*** Titled Tuesday 3|2 Blitz (Late)"]
[Site "Chess.com"]
[Date "2016.12.06"]
[Round "5"]
[White "Bishops83"]
[Black "AllStarShark"]
[Result "1-0"]
[WhiteElo "2282"]
[BlackElo "2328"]
[TimeControl "180+2"]
[EndTime "17:57:13 PST"]
[Termination "Bishops83 won by resignation"]

1. e4 {[%clk 0:03:01.9]} 1... c5 {[%clk 0:02:48.5]} 2. Nf3 {[%clk 0:03:01]} 2...
Nc6 {[%clk 0:02:46.4]} 3. Bb5 {[%clk 0:02:59.9]} 3... e5 {[%clk 0:02:41.3]} 4.
O-O {[%clk 0:02:41.8]} 4... Bd6 {[%clk 0:02:18.6]} 5. c3 {[%clk 0:02:40.2]} 5...
Nge7 {[%clk 0:02:16.2]} 6. d4 {[%clk 0:02:35.7]} 6... cxd4 {[%clk 0:02:12.2]} 7.
cxd4 {[%clk 0:02:37.6]} 7... exd4 {[%clk 0:02:13.6]} 8. Nxd4 {[%clk 0:02:36.5]}
8... Be5 {[%clk 0:02:12.6]} 9. Nf3 {[%clk 0:02:27.1]} 9... O-O {[%clk
0:02:08.1]} 10. Nxe5 {[%clk 0:02:22.7]} 10... Nxe5 {[%clk 0:02:03.9]} 11. Qd6
{[%clk 0:02:24.6]} 11... N7c6 {[%clk 0:01:52.6]} 12. Nc3 {[%clk 0:02:20.2]}
12... a6 {[%clk 0:01:52.2]} 13. Be2 {[%clk 0:02:19.7]} 13... b5 {[%clk
0:01:49.8]} 14. a4 {[%clk 0:02:20]} 14... b4 {[%clk 0:01:49.5]} 15. Nd5 {[%clk
0:02:20.1]} 15... Bb7 {[%clk 0:01:49.8]} 16. f4 {[%clk 0:02:14.6]} 16... Ng6
{[%clk 0:01:44.8]} 17. f5 {[%clk 0:02:15.4]} 17... Nge7 {[%clk 0:01:45.1]} 18.
Bg5 {[%clk 0:02:04.5]} 18... f6 {[%clk 0:01:37.9]} 19. Nxf6+ {[%clk 0:01:57.8]}
19... gxf6 {[%clk 0:01:25.2]} 20. Bxf6 {[%clk 0:01:59]} 20... Rxf6 {[%clk
0:01:04.2]} 21. Qxf6 {[%clk 0:02:00.9]} 21... Qf8 {[%clk 0:01:05.4]} 22. Bc4+
{[%clk 0:01:53.7]} 22... d5 {[%clk 0:01:04.1]} 23. Qe6+ {[%clk 0:01:51.5]} 23...
Qf7 {[%clk 0:01:01.2]} 24. exd5 {[%clk 0:01:52.4]} 24... Qxe6 {[%clk 0:00:58.6]}
25. dxe6 {[%clk 0:01:51.1]} 25... Ne5 {[%clk 0:00:57.6]} 26. Bb3 {[%clk
0:01:43.3]} 26... Rf8 {[%clk 0:00:50.2]} 27. f6 {[%clk 0:01:40.3]} 27... Nd5
{[%clk 0:00:40.2]} 28. e7 {[%clk 0:01:38.3]} 28... Re8 {[%clk 0:00:35.9]} 29.
Rad1 {[%clk 0:01:39]} 1-0

[Event "*** Titled Tuesday 3|2 Blitz (Late)"]
[Site "Chess.com"]
[Date "2016.12.06"]
[Round "5"]
[White "MFBerna"]
[Black "MaestroASK"]
[Result "0-1"]
[WhiteElo "2197"]
[BlackElo "2449"]
[TimeControl "180+2"]
[EndTime "17:57:51 PST"]
[Termination "MaestroASK won by resignation"]

1. e4 {[%clk 0:03:02]} 1... d6 {[%clk 0:03:01.9]} 2. d4 {[%clk 0:03:02.8]} 2...
g6 {[%clk 0:03:03.8]} 3. Nf3 {[%clk 0:03:03.3]} 3... c6 {[%clk 0:03:05.7]} 4.
Nc3 {[%clk 0:03:01.9]} 4... Bg7 {[%clk 0:03:03.9]} 5. h3 {[%clk 0:02:58.6]} 5...
e5 {[%clk 0:03:04.3]} 6. dxe5 {[%clk 0:02:57]} 6... dxe5 {[%clk 0:03:04.5]} 7.
Qxd8+ {[%clk 0:02:54.5]} 7... Kxd8 {[%clk 0:03:05.1]} 8. Bc4 {[%clk 0:02:52.4]}
8... f6 {[%clk 0:03:05.3]} 9. Be3 {[%clk 0:02:47.9]} 9... Bh6 {[%clk 0:03:04.9]}
10. O-O-O+ {[%clk 0:02:24.9]} 10... Ke7 {[%clk 0:03:04.2]} 11. Bxh6 {[%clk
0:02:24.3]} 11... Nxh6 {[%clk 0:03:03.8]} 12. Rd2 {[%clk 0:02:16.1]} 12... Nd7
{[%clk 0:02:59.9]} 13. Rhd1 {[%clk 0:02:12.3]} 13... b5 {[%clk 0:03:00.3]} 14.
Bb3 {[%clk 0:02:02.2]} 14... a5 {[%clk 0:03:00.3]} 15. a4 {[%clk 0:02:01.9]}
15... b4 {[%clk 0:03:00.6]} 16. Ne2 {[%clk 0:02:01.4]} 16... Nc5 {[%clk
0:03:01.3]} 17. Ng3 {[%clk 0:01:59.7]} 17... Nxb3+ {[%clk 0:03:00.8]} 18. cxb3
{[%clk 0:02:00.7]} 18... Be6 {[%clk 0:03:01.2]} 19. Kc2 {[%clk 0:01:59.1]} 19...
Nf7 {[%clk 0:03:00.8]} 20. Nf1 {[%clk 0:01:54.2]} 20... Rhd8 {[%clk 0:02:57.5]}
21. Rxd8 {[%clk 0:01:53.6]} 21... Nxd8 {[%clk 0:02:58]} 22. Ne3 {[%clk
0:01:51.4]} 22... Nb7 {[%clk 0:02:58]} 23. Nd2 {[%clk 0:01:47.8]} 23... Nc5
{[%clk 0:02:57.2]} 24. f3 {[%clk 0:01:45]} 24... Rd8 {[%clk 0:02:56.7]} 25. Ndc4
{[%clk 0:01:06.8]} 25... Rxd1 {[%clk 0:02:53.1]} 26. Kxd1 {[%clk 0:00:57.9]}
26... Nxb3 {[%clk 0:02:45.5]} 27. Kc2 {[%clk 0:00:56.6]} 27... Nc5 {[%clk
0:02:39.1]} 28. Nxa5 {[%clk 0:00:51.5]} 28... b3+ {[%clk 0:02:39.5]} 29. Kc1
{[%clk 0:00:34]} 29... Nxa4 {[%clk 0:02:29.4]} 30. Nxc6+ {[%clk 0:00:35]} 30...
Kd6 {[%clk 0:02:29.8]} 31. Na5 {[%clk 0:00:23.9]} 31... Kc5 {[%clk 0:02:24.8]}
32. Nb7+ {[%clk 0:00:13.1]} 32... Kd4 {[%clk 0:02:23.1]} 33. Nd1 {[%clk
0:00:12.7]} 33... Bc4 {[%clk 0:02:15.8]} 34. Nd6 {[%clk 0:00:12.8]} 34... Bf1
{[%clk 0:02:10.1]} 35. g3 {[%clk 0:00:11.7]} 35... Be2 {[%clk 0:02:06.9]} 36.
Nb5+ {[%clk 0:00:07.9]} 36... Bxb5 {[%clk 0:02:06.9]} 0-1

[Event "*** Titled Tuesday 3|2 Blitz (Late)"]
[Site "Chess.com"]
[Date "2016.12.06"]
[Round "5"]
[White "nonsopolo1"]
[Black "micfel"]
[Result "0-1"]
[WhiteElo "2175"]
[BlackElo "2274"]
[TimeControl "180+2"]
[EndTime "17:57:58 PST"]
[Termination "micfel won by resignation"]

1. e4 {[%clk 0:03:02]} 1... Nf6 {[%clk 0:02:59.8]} 2. e5 {[%clk 0:03:01]} 2...
Nd5 {[%clk 0:03:00.3]} 3. Bc4 {[%clk 0:03:01.8]} 3... Nb6 {[%clk 0:03:00.7]} 4.
Bb3 {[%clk 0:03:02.9]} 4... d6 {[%clk 0:03:01.4]} 5. d4 {[%clk 0:03:01.9]} 5...
Nc6 {[%clk 0:03:01.1]} 6. exd6 {[%clk 0:02:33]} 6... cxd6 {[%clk 0:03:01.3]} 7.
Nf3 {[%clk 0:02:32.3]} 7... g6 {[%clk 0:03:01.3]} 8. Ng5 {[%clk 0:02:29.8]} 8...
e6 {[%clk 0:03:00.9]} 9. c3 {[%clk 0:02:26.9]} 9... Bg7 {[%clk 0:03:00.7]} 10.
h4 {[%clk 0:02:26.2]} 10... h6 {[%clk 0:02:57]} 11. Ne4 {[%clk 0:02:25.2]} 11...
f5 {[%clk 0:02:50.9]} 12. Ng3 {[%clk 0:02:17.1]} 12... d5 {[%clk 0:02:43.5]} 13.
Nd2 {[%clk 0:02:15]} 13... O-O {[%clk 0:02:40.9]} 14. Nf3 {[%clk 0:02:14.2]}
14... a5 {[%clk 0:02:32.4]} 15. Bf4 {[%clk 0:02:09.6]} 15... a4 {[%clk
0:02:31.8]} 16. Bc2 {[%clk 0:02:10.3]} 16... Nc4 {[%clk 0:02:29.1]} 17. b3
{[%clk 0:01:52.7]} 17... axb3 {[%clk 0:02:27.3]} 18. axb3 {[%clk 0:01:52]} 18...
Rxa1 {[%clk 0:02:27.5]} 19. Qxa1 {[%clk 0:01:51.8]} 19... Nd6 {[%clk 0:02:28]}
20. Qc1 {[%clk 0:01:41.5]} 20... Kh7 {[%clk 0:02:26.7]} 21. h5 {[%clk
0:01:41.1]} 21... g5 {[%clk 0:02:24.2]} 22. Bxg5 {[%clk 0:01:34.4]} 22... hxg5
{[%clk 0:02:20.6]} 23. Nxg5+ {[%clk 0:01:34.6]} 23... Kh8 {[%clk 0:02:21.3]} 24.
h6 {[%clk 0:01:18.6]} 24... Bf6 {[%clk 0:02:21.2]} 25. f4 {[%clk 0:01:03.8]}
25... b6 {[%clk 0:02:05.9]} 26. Nh5 {[%clk 0:01:00]} 26... Qe7 {[%clk
0:01:55.7]} 27. Ng7 {[%clk 0:00:54.8]} 27... Ne4 {[%clk 0:01:51.5]} 28. Bxe4
{[%clk 0:00:52.7]} 28... fxe4 {[%clk 0:01:50.1]} 29. Qe3 {[%clk 0:00:50.6]}
29... Bd7 {[%clk 0:01:44.4]} 30. Qg3 {[%clk 0:00:46.7]} 30... e5 {[%clk
0:01:38.7]} 31. dxe5 {[%clk 0:00:32.9]} 31... Nxe5 {[%clk 0:01:36.5]} 32. Qh4
{[%clk 0:00:27.4]} 32... Nd3+ {[%clk 0:01:32.5]} 33. Kf1 {[%clk 0:00:22.4]}
33... Bxg5 {[%clk 0:01:31.6]} 0-1

[Event "*** Titled Tuesday 3|2 Blitz (Late)"]
[Site "Chess.com"]
[Date "2016.12.06"]
[Round "5"]
[White "dretch"]
[Black "Izoria123"]
[Result "1-0"]
[WhiteElo "2592"]
[BlackElo "2580"]
[TimeControl "180+2"]
[EndTime "17:58:35 PST"]
[Termination "dretch won by resignation"]

1. d4 {[%clk 0:03:02]} 1... e6 {[%clk 0:02:58.1]} 2. c4 {[%clk 0:03:02.4]} 2...
f5 {[%clk 0:02:58.6]} 3. g3 {[%clk 0:03:02.9]} 3... Nf6 {[%clk 0:02:59.9]} 4.
Bg2 {[%clk 0:03:04.3]} 4... c6 {[%clk 0:03:01.4]} 5. Nd2 {[%clk 0:02:57.9]} 5...
d5 {[%clk 0:03:01.2]} 6. Nh3 {[%clk 0:02:58.1]} 6... Bd6 {[%clk 0:03:01.8]} 7.
O-O {[%clk 0:02:58.6]} 7... O-O {[%clk 0:03:02]} 8. Nf3 {[%clk 0:03:00]} 8...
Bd7 {[%clk 0:02:49.8]} 9. Bf4 {[%clk 0:02:59.9]} 9... Be8 {[%clk 0:02:48.1]} 10.
Qb3 {[%clk 0:02:55.4]} 10... b6 {[%clk 0:02:48.3]} 11. Nfg5 {[%clk 0:02:47.5]}
11... Bf7 {[%clk 0:02:45.3]} 12. Rac1 {[%clk 0:02:44.1]} 12... h6 {[%clk
0:02:44.8]} 13. Nxf7 {[%clk 0:00:52.4]} 13... Rxf7 {[%clk 0:02:46.7]} 14. cxd5
{[%clk 0:00:53.3]} 14... cxd5 {[%clk 0:02:47.2]} 15. Rc2 {[%clk 0:00:44.3]}
15... Rc7 {[%clk 0:01:41.7]} 16. Rfc1 {[%clk 0:00:44]} 16... Rxc2 {[%clk
0:01:42.1]} 17. Rxc2 {[%clk 0:00:39.1]} 17... Bf8 {[%clk 0:01:35.5]} 18. Be5
{[%clk 0:00:35.2]} 18... Nbd7 {[%clk 0:01:19.7]} 19. Nf4 {[%clk 0:00:34.4]}
19... Kf7 {[%clk 0:01:21.1]} 20. Nxe6 {[%clk 0:00:29.4]} 20... Kxe6 {[%clk
0:01:20]} 21. Bxd5+ {[%clk 0:00:29.6]} 21... Ke7 {[%clk 0:00:42.1]} 22. Bf7
{[%clk 0:00:05]} 1-0

[Event "*** Titled Tuesday 3|2 Blitz (Late)"]
[Site "Chess.com"]
[Date "2016.12.06"]
[Round "5"]
[White "Alliswell998"]
[Black "GM_Barcenilla"]
[Result "0-1"]
[WhiteElo "2131"]
[BlackElo "2659"]
[TimeControl "180+2"]
[EndTime "17:58:38 PST"]
[Termination "GM_Barcenilla won by resignation"]

1. e4 {[%clk 0:03:01.9]} 1... g6 {[%clk 0:03:00.3]} 2. Nc3 {[%clk 0:03:00.9]}
2... Bg7 {[%clk 0:03:01]} 3. f4 {[%clk 0:03:01.2]} 3... c5 {[%clk 0:03:00.7]} 4.
Nf3 {[%clk 0:03:00.2]} 4... Nc6 {[%clk 0:03:01.6]} 5. Bb5 {[%clk 0:02:59.4]}
5... Nd4 {[%clk 0:03:00.3]} 6. O-O {[%clk 0:03:00.1]} 6... Nxb5 {[%clk
0:02:57.6]} 7. Nxb5 {[%clk 0:03:02]} 7... d6 {[%clk 0:02:52.1]} 8. d3 {[%clk
0:03:00.8]} 8... Nf6 {[%clk 0:02:51.8]} 9. Qe1 {[%clk 0:03:00.4]} 9... O-O
{[%clk 0:02:43.9]} 10. Qh4 {[%clk 0:02:58.8]} 10... c4 {[%clk 0:02:32.8]} 11.
Nc3 {[%clk 0:02:48.3]} 11... cxd3 {[%clk 0:02:33.7]} 12. cxd3 {[%clk 0:02:48.9]}
12... Qb6+ {[%clk 0:02:26.3]} 13. Kh1 {[%clk 0:02:47.3]} 13... Re8 {[%clk
0:02:12.7]} 14. f5 {[%clk 0:02:34.5]} 14... gxf5 {[%clk 0:02:02]} 15. Bh6 {[%clk
0:02:31.7]} 15... Bxh6 {[%clk 0:01:57.3]} 16. Qxh6 {[%clk 0:02:31.1]} 16... Qxb2
{[%clk 0:01:58.1]} 17. Rac1 {[%clk 0:02:16.7]} 17... Be6 {[%clk 0:01:58.4]} 18.
Ng5 {[%clk 0:02:10.8]} 18... Rac8 {[%clk 0:01:37.4]} 19. exf5 {[%clk 0:01:52.4]}
19... Bxf5 {[%clk 0:01:38.1]} 20. Rb1 {[%clk 0:01:14.7]} 20... Qxc3 {[%clk
0:01:32.7]} 21. Rxf5 {[%clk 0:01:13]} 21... Qxd3 {[%clk 0:01:33.1]} 22. Rff1
{[%clk 0:01:04.5]} 22... b6 {[%clk 0:01:09.5]} 23. Rbe1 {[%clk 0:00:42.1]} 23...
Qg6 {[%clk 0:01:06.8]} 24. Qh4 {[%clk 0:00:42.2]} 24... Rc2 {[%clk 0:01:06]} 25.
Rxf6 {[%clk 0:00:38.2]} 25... exf6 {[%clk 0:01:01]} 26. Rxe8+ {[%clk 0:00:37.9]}
26... Kg7 {[%clk 0:01:02.5]} 27. Re1 {[%clk 0:00:11]} 27... fxg5 {[%clk
0:01:02.5]} 28. Qd4+ {[%clk 0:00:11.3]} 28... Qf6 {[%clk 0:01:03.7]} 29. Qd3
{[%clk 0:00:12.6]} 29... Rxa2 {[%clk 0:01:04]} 30. Rf1 {[%clk 0:00:12.8]} 30...
Qe6 {[%clk 0:00:58.8]} 31. Qd4+ {[%clk 0:00:11.9]} 31... f6 {[%clk 0:01:00.1]}
32. Rc1 {[%clk 0:00:10.8]} 32... Re2 {[%clk 0:00:58.9]} 33. Rc7+ {[%clk
0:00:12]} 33... Kh6 {[%clk 0:00:59.5]} 34. h4 {[%clk 0:00:13.1]} 34... Re1+
{[%clk 0:01:00.3]} 35. Kh2 {[%clk 0:00:14.3]} 35... Qe5+ {[%clk 0:01:00.6]} 36.
Qxe5 {[%clk 0:00:15.8]} 36... fxe5 {[%clk 0:01:00.6]} 37. hxg5+ {[%clk
0:00:16.5]} 37... Kxg5 {[%clk 0:01:02.5]} 38. Rxh7 {[%clk 0:00:17.8]} 38... a5
{[%clk 0:01:03.8]} 39. Ra7 {[%clk 0:00:19.3]} 39... Kf5 {[%clk 0:01:02.1]} 0-1

[Event "*** Titled Tuesday 3|2 Blitz (Late)"]
[Site "Chess.com"]
[Date "2016.12.06"]
[Round "5"]
[White "Sethu0025"]
[Black "capatl"]
[Result "1-0"]
[WhiteElo "2614"]
[BlackElo "2385"]
[TimeControl "180+2"]
[EndTime "17:58:44 PST"]
[Termination "Sethu0025 won by resignation"]

1. e4 {[%clk 0:03:02]} 1... c5 {[%clk 0:03:00.5]} 2. Nf3 {[%clk 0:03:03]} 2...
e6 {[%clk 0:03:01.8]} 3. d4 {[%clk 0:03:04]} 3... cxd4 {[%clk 0:03:03.7]} 4.
Nxd4 {[%clk 0:03:05.8]} 4... a6 {[%clk 0:03:04.8]} 5. Bd3 {[%clk 0:03:06]} 5...
Qc7 {[%clk 0:03:05.5]} 6. O-O {[%clk 0:03:06.3]} 6... d6 {[%clk 0:03:06.8]} 7.
Qe2 {[%clk 0:03:07.4]} 7... Nf6 {[%clk 0:03:08]} 8. c4 {[%clk 0:03:08.1]} 8...
Nbd7 {[%clk 0:03:09.1]} 9. Nc3 {[%clk 0:03:09.1]} 9... Be7 {[%clk 0:03:02.7]}
10. f4 {[%clk 0:03:08.8]} 10... O-O {[%clk 0:02:57.5]} 11. Kh1 {[%clk
0:03:09.7]} 11... b6 {[%clk 0:02:57.2]} 12. Bd2 {[%clk 0:03:07.8]} 12... Bb7
{[%clk 0:02:58.1]} 13. Rae1 {[%clk 0:03:02.6]} 13... Rac8 {[%clk 0:02:58]} 14.
e5 {[%clk 0:02:58.3]} 14... Ne8 {[%clk 0:02:45.5]} 15. Nf3 {[%clk 0:02:38]}
15... Bxf3 {[%clk 0:02:37.3]} 16. Rxf3 {[%clk 0:02:38.4]} 16... g6 {[%clk
0:02:30.3]} 17. Rh3 {[%clk 0:02:20.3]} 17... Rd8 {[%clk 0:02:27]} 18. exd6
{[%clk 0:02:07]} 18... Qxd6 {[%clk 0:01:58.3]} 19. Ne4 {[%clk 0:01:57.6]} 19...
Qc7 {[%clk 0:01:56.4]} 20. Ng5 {[%clk 0:01:43.5]} 20... Bxg5 {[%clk 0:01:27.9]}
21. fxg5 {[%clk 0:01:45.4]} 21... Ng7 {[%clk 0:01:26.4]} 22. Bc3 {[%clk
0:01:44.4]} 22... e5 {[%clk 0:01:25.2]} 23. Qg4 {[%clk 0:01:34.4]} 23... Rfe8
{[%clk 0:01:17.7]} 24. Qh4 {[%clk 0:01:21.5]} 24... Nf8 {[%clk 0:01:18.6]} 25.
Rhe3 {[%clk 0:01:15.8]} 25... Nf5 {[%clk 0:00:44]} 26. Bxf5 {[%clk 0:01:15.5]}
26... gxf5 {[%clk 0:00:44.9]} 27. Rxe5 {[%clk 0:01:01]} 27... Rxe5 {[%clk
0:00:35.9]} 28. Bxe5 {[%clk 0:01:01.8]} 28... Qd7 {[%clk 0:00:19.6]} 29. Qh6
{[%clk 0:00:54.4]} 29... Ne6 {[%clk 0:00:19.6]} 30. Qf6 {[%clk 0:00:54.1]} 30...
Kf8 {[%clk 0:00:17.4]} 31. Qh8+ {[%clk 0:00:51.9]} 31... Ke7 {[%clk 0:00:18.3]}
32. Bf6+ {[%clk 0:00:48.3]} 32... Kd6 {[%clk 0:00:19.4]} 33. Bxd8 {[%clk
0:00:45.7]} 1-0